bitfinex-derivatives/quotes_SOLF0:USTF0_20250228
["timestamp","ask_amount","ask_price","bid_price","bid_amount"]
[1740754825376,21.91795184,144.17,144.16,98.63275268]
[1740754825572,19.27330576,144.17,144.16,98.63275268]
[1740754825776,0.0499584,144.18,144.16,1.67086928]
[1740754826078,21.14068191,144.19,144.18,1.67086928]
[1740754826680,301.36317409,144.27,144.18,1.67086928]
[1740754826979,280.88317409,144.27,144.26,1.67086928]
[1740754827281,469.61149762,144.27,144.26,1.67086928]
[1740754827475,463.92639762,144.27,144.2,20.48]
[1740754827677,402.87399762,144.27,144.25,0.04388862]
[1740754827877,329.91960338,144.27,144.26,229.0359]
[1740754828072,308.50426623,144.27,144.26,229.0359]
[1740754828274,374.51089879,144.35,144.26,225.56]
[1740754828481,374.51089879,144.35,144.27,20.46]
[1740754828881,374.51089879,144.35,144.27,23.92]
[1740754829282,9.4330406,144.46,144.27,23.92]
[1740754829475,0.0501334,144.32,144.3,0.0469564]
[1740754829675,34.65,144.44,144.27,20.46]
[1740754829875,6.93,144.43,144.3,0.04829823]
[1740754830085,0.05266013,144.37,144.3,0.04829823]
[1740754830386,0.05266013,144.37,144.32,0.04426286]
[1740754830775,0.05266013,144.37,144.16,1720.82]
[1740754830776,34.65,144.33,144.14,222.04]
[1740754830982,62.38,144.33,144.31,397.18028927]
[1740754831179,41.58,144.32,144.31,397.18028927]
[1740754831389,41.58,144.32,144.31,320.83398927]
[1740754831678,51.973,144.32,144.31,197.59688927]
[1740754831882,10.393,144.32,144.31,143.19468927]
[1740754832178,10.393,144.32,144.31,67.17498927]
[1740754832387,10.393,144.32,144.31,8.46618927]
[1740754832581,3.46,144.32,144.29,301.6938915]
[1740754832885,242.4,144.33,144.29,301.6938915]
[1740754833482,20.46,144.33,144.29,301.6938915]
[1740754833886,0.05008678,144.32,144.3,0.02378367]
[1740754834281,0.05008678,144.32,144.31,41.58]
[1740754834886,0.05008678,144.32,144.31,6.93]
[1740754835278,20.49008678,144.32,144.3,0.02378367]
[1740754836385,20.49008678,144.32,144.24,3.4552]
[1740754836683,20.49008678,144.32,144.26,6.93]
[1740754836885,0.05008678,144.32,144.3,6.93]
[1740754837090,0.05008678,144.32,144.29,6.93]
[1740754837485,0.05008678,144.32,144.24,3.4552]
[1740754837685,0.05008678,144.32,144.24,32.72389833]
[1740754837886,0.05008678,144.32,144.24,3.4552]
[1740754838086,0.05008678,144.32,144.25,6.93]
[1740754838590,0.05008678,144.32,144.24,67.37389833]
[1740754838591,0.05008678,144.32,144.24,3.4552]
[1740754838787,0.05008678,144.32,144.25,6.93]
[1740754839088,0.05008678,144.32,144.28,6.93]
[1740754839290,0.05008678,144.32,144.3,6.93]
[1740754839589,0.05008678,144.32,144.31,6.93]
[1740754840180,0.05008678,144.32,144.31,41.58]
[1740754840384,20.42,144.4,144.31,41.58]
[1740754840591,20.42,144.4,144.36,6.93]
[1740754840785,20.42,144.4,144.37,6.93]
[1740754840995,20.42,144.4,144.39,6.93]
[1740754841189,221.92,144.47,144.39,6.93]
[1740754841383,0.05218354,144.44,144.42,0.04438318]
[1740754841590,0.05218354,144.44,144.42,6.97438318]
[1740754841785,20.42,144.46,144.43,6.93]
[1740754841994,28.3366251,144.58,144.42,34.65]
[1740754841995,28.3366251,144.58,144.45,41.58]
[1740754842183,20.42,144.57,144.43,3.7905]
[1740754842386,28.3366251,144.58,144.52,6.93]
[1740754842584,0.0457547,144.53,144.52,6.93]
[1740754842788,28.3366251,144.58,144.56,6.93]
[1740754842983,28.3366251,144.58,144.55,6.93]
[1740754843190,35.30819677,144.58,144.44,3.4885]
[1740754843390,35.30819677,144.58,144.55,0.05008678]
[1740754843391,28.38759677,144.58,144.55,0.05008678]
[1740754843591,28.3366251,144.58,144.55,0.05008678]
[1740754843796,0.0495419,144.52,144.44,3.4885]
[1740754843994,35.2572251,144.58,144.52,6.93]
[1740754844390,35.2572251,144.58,144.47,0.04580567]
[1740754844598,0.04523036,144.56,144.52,6.93]
[1740754844788,0.04523036,144.56,144.54,0.05008678]
[1740754844993,20.4,144.55,144.54,0.05008678]
[1740754847396,0.04523036,144.56,144.54,6.98008678]
[1740754847593,20.4,144.61,144.55,41.58]
[1740754847798,20.4,144.61,144.59,6.93]
[1740754847999,20.4,144.61,144.6,6.93]
[1740754848194,60.44450633,144.64,144.6,41.58]
[1740754848495,147.7066827,144.68,144.5,30.01862912]
[1740754848801,147.7066827,144.68,144.58,6.93]
[1740754848991,6.9201,144.59,144.58,0.05054436]
[1740754849297,20.38,144.59,144.35,242.04]
[1740754849497,20.38,144.59,144.57,0.04811546]
[1740754849696,20.38,144.59,144.53,6.93]
[1740754849998,20.42568889,144.59,144.57,0.04625741]
[1740754850192,20.42568889,144.59,144.51,34.65]
[1740754850398,20.42568889,144.59,144.44,6.9075]
[1740754850596,20.42568889,144.59,144.47,6.93]
[1740754850798,6.9252,144.49,144.47,6.93]
[1740754850996,27.3052,144.49,144.47,6.93]
[1740754851195,20.38,144.49,144.47,6.93]
[1740754851400,20.43043536,144.49,144.47,6.97911714]
[1740754852296,20.43043536,144.49,144.47,0.04911714]
[1740754852596,20.43043536,144.49,144.48,41.58]
[1740754852795,0.05043536,144.49,144.48,41.58]
[1740754852992,20.38,144.53,144.48,41.58]
[1740754853190,20.38,144.53,144.51,6.93]
[1740754853594,20.38,144.53,144.52,6.93]
[1740754853795,20.38,144.53,144.51,6.93]
[1740754854193,20.42416738,144.53,144.51,0.04376359]
[1740754854401,20.42416738,144.53,144.52,41.58]
[1740754854696,20.42416738,144.53,144.52,6.93]
[1740754854906,20.42416738,144.53,144.51,0.04376359]
[1740754855099,20.42416738,144.53,144.52,41.58]
[1740754855300,20.42416738,144.53,144.52,6.93]
[1740754855600,20.42416738,144.53,144.51,0.04376359]
[1740754855800,20.42416738,144.53,144.52,6.93]
[1740754855998,20.42416738,144.53,144.51,0.04376359]
[1740754856199,20.42416738,144.53,144.52,6.93]
[1740754856399,20.42416738,144.53,144.51,0.04376359]
[1740754857497,0.04416738,144.53,144.52,41.58]
[1740754857698,20.36,144.62,144.52,41.58]
[1740754857899,20.36,144.62,144.59,41.58]
[1740754858204,20.36,144.62,144.6,41.58]
[1740754858404,20.36,144.62,144.6,6.93]
[1740754858797,20.40445747,144.62,144.6,0.04393272]
[1740754860200,0.04445747,144.62,144.61,41.58]
[1740754860705,1.38245662,144.67,144.61,41.58]
[1740754860897,1.38245662,144.67,144.66,6.93]
[1740754861102,20.34,144.68,144.66,41.58]
[1740754861302,20.34,144.77,144.67,41.58]
[1740754861501,1.1955633,144.76,144.71,6.93]
[1740754861703,20.34,144.77,144.71,6.93]
[1740754861909,0.05031424,144.73,144.71,0.0521519]
[1740754862607,0.05031424,144.73,144.55,221.56]
[1740754862805,0.05031424,144.73,144.62,6.93]
[1740754863105,1.19587882,144.73,144.57,6.93]
[1740754863404,1.19587882,144.73,144.62,6.93]
[1740754863605,2.57776232,144.73,144.62,41.58]
[1740754863908,0.0439774,144.69,144.66,0.04443638]
[1740754864107,20.34,144.68,144.58,6.93]
[1740754864500,20.34,144.68,144.59,6.93]
[1740754864700,20.34,144.68,144.54,7.037]
[1740754865006,190.0,144.67,144.55,6.93]
[1740754865209,190.0,144.67,144.56,34.65]
[1740754865405,0.04949232,144.62,144.6,0.05263546]
[1740754865606,20.32,144.61,144.6,6.98263546]
[1740754865812,20.32,144.61,144.6,34.70263546]
[1740754866109,20.32,144.61,144.6,6.98263546]
[1740754866307,20.32,144.61,144.6,0.05263546]
[1740754866502,1.38255219,144.66,144.6,41.63263546]
[1740754866699,1.38255219,144.66,144.6,6.98263546]
[1740754866901,1.38255219,144.66,144.6,0.05263546]
[1740754867703,1.38255219,144.66,144.54,3.4367]
[1740754867704,0.04872485,144.64,144.54,3.4367]
[1740754867909,20.32,144.63,144.54,6.93]
[1740754868407,20.32,144.63,144.5,2.19814]
[1740754868612,1.19671282,144.62,144.52,6.93]
[1740754868808,0.04457245,144.58,144.55,0.04638038]
[1740754869008,0.04457245,144.58,144.56,6.93]
[1740754869312,0.04457245,144.58,144.55,6.97638038]
[1740754869511,0.04457245,144.58,144.55,0.04638038]
[1740754870713,0.04457245,144.58,144.5,2.19814]
[1740754871309,1.24167993,144.58,144.5,4e-05]
[1740754872014,1.24167993,144.58,144.53,0.0365015]
[1740754872204,1.24167993,144.58,144.39,3.5757]
[1740754872409,1.19710748,144.58,144.43,6.93]
[1740754872712,1.19710748,144.58,144.35,3.535]
[1740754872906,1.19710748,144.58,144.37,6.93]
[1740754873116,1.19710748,144.58,144.35,6.93]
[1740754873318,0.05156839,144.49,144.32,34.65]
[1740754873516,241.9,144.48,144.34,6.93]
[1740754873716,1.38730748,144.47,144.34,6.93]
[1740754873914,0.05309663,144.42,144.29,3.4364]
[1740754874215,20.32,144.41,144.22,7.1407]
[1740754874515,0.05006221,144.37,144.24,6.93]
[1740754874707,221.58,144.36,144.24,6.93]
[1740754874906,0.05163933,144.32,144.26,6.93]
[1740754875104,20.32,144.31,144.27,6.93]
[1740754875311,20.32,144.31,144.27,34.65]
[1740754875512,20.32,144.31,144.3,6.93]
[1740754875907,20.32,144.31,144.19,3.4364]
[1740754876107,20.32,144.31,144.19,32.70509833]
[1740754876306,20.32,144.31,144.22,34.65]
[1740754876508,0.04540916,144.26,144.2,6.93]
[1740754876706,221.7,144.25,144.16,6.93]
[1740754876910,20.3,144.24,144.16,6.93]
[1740754877118,20.3,144.24,144.17,6.93]
[1740754877507,0.05248443,144.21,144.18,6.93]
[1740754877711,0.05248443,144.21,144.15,6.93]
[1740754877909,0.05248443,144.21,144.17,6.93]
[1740754878210,20.3,144.24,144.14,6.93]
[1740754878415,0.0511908,144.2,144.09,192.08768219]
[1740754878616,0.0511908,144.2,144.09,188.55868219]
[1740754878916,0.1902,144.22,144.09,188.55868219]
[1740754879217,0.04704923,144.16,144.09,188.55868219]
[1740754879513,242.18,144.15,144.09,188.55868219]
[1740754879716,242.18,144.15,144.11,6.93]
[1740754880113,242.18,144.15,144.09,188.55868219]
[1740754880716,6.9436,144.1,144.09,185.08118219]
[1740754881518,6.9436,144.1,144.09,185.05668219]
[1740754882018,6.98824101,144.11,144.09,185.05668219]
[1740754882521,6.9436,144.1,144.09,185.05668219]
[1740754883116,6.9436,144.1,144.09,174.31008219]
[1740754883318,3.46,144.1,143.84,222.0]
[1740754883620,1.20123516,144.09,143.95,6.93]
[1740754883818,6.946,144.05,143.96,34.65]
[1740754884019,0.05159424,143.98,143.97,34.65]
[1740754884215,20.32,143.98,143.85,3.4215]
[1740754884421,20.32,143.98,143.97,41.58]
[1740754884825,20.32,143.98,143.97,6.93]
[1740754885322,20.32,143.98,143.85,3.4215]
[1740754885517,20.32,143.98,143.96,6.93]
[1740754885719,20.32,143.98,143.97,6.93]
[1740754886023,20.36958776,143.98,143.97,6.93]
[1740754886218,20.36958776,143.98,143.87,6.9546]
[1740754886414,20.32,143.98,143.96,6.93]
[1740754887021,20.37338336,143.98,143.97,6.93]
[1740754887221,20.37338336,143.98,143.97,41.58]
[1740754887423,0.2117,144.11,143.97,41.58]
[1740754887621,22.92949332,144.1,144.02,6.93]
[1740754887922,2.58961351,144.09,143.98,6.93]
[1740754888123,2.58970985,144.08,143.98,6.93]
[1740754888324,2.5898062,144.07,143.98,6.93]
[1740754888526,1.38821406,144.07,143.98,6.93]
[1740754888724,6.9474,144.03,144.01,0.04785017]
[1740754888918,20.32,144.02,144.01,0.04785017]
[1740754889317,20.32,144.02,144.01,6.97785017]
[1740754889628,20.32,144.02,144.01,0.04785017]
[1740754889824,27.2675,144.02,143.86,222.14]
[1740754890129,20.32,144.02,143.98,6.93]
[1740754890323,6.948,144.01,143.96,6.93]
[1740754890625,20.32,144.02,143.86,222.14]
[1740754890829,20.32,144.02,143.94,6.93]
[1740754891028,20.32,144.02,143.96,6.93]
[1740754891324,0.05101985,144.0,143.96,6.93]
[1740754891534,0.05101985,144.0,143.97,6.93]
[1740754891928,1.38821406,144.07,143.99,6.93]
[1740754892224,0.04734797,144.0,143.99,6.93]
[1740754892429,1.20177627,144.05,143.86,222.14]
[1740754892624,6.948,144.01,143.99,6.93]
[1740754892825,20.34,144.06,143.99,6.93]
[1740754893126,0.0444221,143.97,143.86,222.14]
[1740754893332,20.34,143.99,143.97,34.65]
[1740754893631,20.34,143.99,143.86,222.14]
[1740754893829,20.39058957,143.99,143.98,6.93]
[1740754894025,20.34,143.99,143.98,6.93]
[1740754894230,20.34,143.99,143.9,7.4631]
[1740754894528,20.34,143.99,143.94,6.93]
[1740754894728,0.04729948,143.96,143.94,6.93]
[1740754894930,0.04729948,143.96,143.69,103.78911953]
[1740754895130,0.04729948,143.96,143.47,1723.24]
[1740754895131,1.3893713,143.95,143.72,10.922]
[1740754895428,1.20254694,143.94,143.91,34.65]
[1740754895627,8.3405713,143.95,143.89,34.65]
[1740754895824,1.3893713,143.95,143.89,34.65]
[1740754896025,0.0488575,143.93,143.75,20.34]
[1740754896224,1.3893713,143.95,143.75,20.34]
[1740754896225,20.34,143.92,143.84,34.65]
[1740754896438,0.0451895,143.85,143.84,34.65]
[1740754896629,20.34,143.92,143.84,63.91869833]
[1740754896824,20.34,143.92,143.89,34.65]
[1740754897131,134.68665903,144.07,143.78,20.32]
[1740754897335,1.20227405,144.06,144.02,34.65]
[1740754897634,7.4331,144.24,144.02,34.65]
[1740754897635,20.32,144.29,144.03,222.42]
[1740754897825,140.12327447,144.35,144.03,222.42]
[1740754897826,1.20032753,144.28,144.04,20.32]
[1740754898025,1.20032753,144.3,144.23,34.64991178]
[1740754898225,20.32,144.31,144.24,34.64991178]
[1740754898431,20.34,144.3,144.11,20.34]
[1740754898733,20.34,144.3,144.25,34.64991178]
[1740754898933,20.34,144.3,144.26,34.64991178]
[1740754899131,9.1663124,144.34,144.29,34.64991178]
[1740754899334,9.1663124,144.34,144.31,34.64991178]
[1740754899537,9.1663124,144.34,144.32,34.64991178]
[1740754899737,9.21233273,144.34,144.32,34.64991178]
[1740754899938,9.21233273,144.34,144.2,6.9384]
[1740754900136,9.21233273,144.34,144.32,34.69537261]
[1740754900433,9.1663124,144.34,144.19,3.7731]
[1740754900638,9.21595349,144.34,144.32,0.04818153]
[1740754900941,0.04806935,144.28,144.26,34.64991178]
[1740754901136,20.32,144.27,144.26,34.64991178]
[1740754901331,20.32,144.27,144.26,0.04723664]
[1740754903135,20.3,144.32,144.26,34.69714842]
[1740754903342,20.3,144.32,144.29,34.64991178]
[1740754903839,20.3,144.32,144.16,20.3]
[1740754904035,20.3,144.32,144.28,34.64991178]
[1740754904235,20.3,144.32,144.14,3.5083]
[1740754904434,0.05073666,144.31,144.29,6.84e-05]
[1740754904630,2.58533102,144.31,144.19,34.64991178]
[1740754904831,1.19942568,144.3,144.17,34.64991178]
[1740754905031,1.38609744,144.29,144.17,34.64991178]
[1740754905337,1.19998382,144.28,144.14,3.5083]
[1740754905534,0.04978542,144.24,144.22,0.05066608]
[1740754905730,27.2373,144.23,144.22,0.05066608]
[1740754905931,20.3,144.23,144.22,0.05066608]
[1740754908035,0.04978542,144.24,144.22,0.05066608]
[1740754908233,16.14578542,144.24,144.22,34.70057786]
[1740754908440,16.14578542,144.24,144.22,0.05066608]
[1740754909539,16.1924079,144.24,144.22,0.05066608]
[1740754909742,16.1924079,144.24,144.22,6.608e-05]
[1740754910940,6.9373,144.23,144.22,6.608e-05]
[1740754911740,0.04662248,144.24,144.22,6.608e-05]
[1740754911943,20.28,144.23,144.22,6.608e-05]
[1740754912538,27.2173,144.23,144.22,6.608e-05]
[1740754913540,30.6819,144.23,144.22,6.608e-05]
[1740754914045,27.2173,144.23,144.22,6.608e-05]
[1740754918447,20.28,144.23,144.22,6.608e-05]
[1740754918642,20.28,144.23,144.22,34.64997786]
[1740754918839,0.04662248,144.24,144.22,34.64997786]
[1740754919039,1.38628959,144.27,144.23,34.64991178]
[1740754919243,112.62433727,144.35,144.26,34.64991178]
[1740754919540,20.26,144.31,144.29,34.64991178]
[1740754919747,14.5628,144.31,144.16,222.12]
[1740754919948,112.62433727,144.35,144.3,34.64991178]
[1740754920142,112.62433727,144.35,144.34,34.64991178]
[1740754920343,0.04778689,144.34,144.31,34.69834996]
[1740754920549,112.62433727,144.35,144.31,34.64991178]
[1740754920748,0.04755257,144.34,144.32,34.64991178]
[1740754920942,0.04755257,144.34,144.31,29.31302371]
[1740754920943,106.56673727,144.35,144.34,34.64991178]
[1740754921144,20.26,144.47,144.31,3.50432538]
[1740754921344,20.26,144.49,144.44,8.84187284]
[1740754921547,20.26,144.49,144.33,20.26]
[1740754921747,20.26,144.49,144.46,8.84187284]
[1740754921947,20.26,144.49,144.47,8.84187284]
[1740754922148,20.30612729,144.49,144.48,8.84187284]
[1740754922448,20.26,144.49,144.33,20.26]
[1740754922648,20.26,144.49,144.44,8.84187284]
[1740754922850,20.26,144.49,144.47,0.04933324]
[1740754923447,0.04794579,144.5,144.47,0.04933324]
[1740754923448,0.04794579,144.5,144.48,8.84187284]
[1740754923647,0.04794579,144.5,144.49,8.84187284]
[1740754923843,20.24,144.58,144.47,3.50933324]
[1740754924049,20.24,144.58,144.4,20.24]
[1740754924050,20.24,144.58,144.57,8.79392705]
[1740754924244,20.24,144.63,144.57,8.79392705]
[1740754924451,20.24,144.63,144.48,221.96]
[1740754924652,20.24,144.63,144.62,8.79392705]
[1740754924855,64.61625519,144.64,144.62,8.79392705]
[1740754925153,64.66286419,144.64,144.63,8.79392705]
[1740754925646,64.61625519,144.64,144.63,8.79392705]
[1740754926050,64.61625519,144.64,144.62,0.05119701]
[1740754926453,64.61625519,144.64,144.63,8.79392705]
[1740754927057,64.61625519,144.64,144.63,12.25392705]
[1740754927545,64.61625519,144.64,144.63,8.79392705]
[1740754928054,64.61625519,144.64,144.5,221.8]
[1740754928247,64.61625519,144.64,144.59,8.79392705]
[1740754928451,71.53435519,144.64,144.6,8.79392705]
[1740754928652,64.61625519,144.64,144.6,8.79392705]
[1740754928948,64.61625519,144.64,144.5,221.8]
[1740754929154,64.61625519,144.64,144.63,8.79392705]
[1740754929354,0.05310033,144.58,144.56,0.04777175]
[1740754929555,64.61625519,144.64,144.63,8.79392705]
[1740754929757,207.88017726,144.66,144.63,8.79392705]
[1740754929954,0.04898148,144.65,144.53,5.84377291]
[1740754930453,207.88017726,144.66,144.53,5.84377291]
[1740754931153,0.05015947,144.61,144.58,0.04899113]
[1740754931754,6.9201,144.59,144.58,0.04899113]
[1740754932157,3.46,144.59,144.43,221.68]
[1740754932354,20.2,144.6,144.38,221.68]
[1740754932355,23.6929,144.6,144.38,221.68]
[1740754932552,27.4186,144.6,144.38,221.68]
[1740754932860,20.2,144.6,144.39,20.2]
[1740754933061,187.66017726,144.66,144.39,20.2]
[1740754933289,187.66017726,144.66,144.5,6.9244]
[1740754933512,187.66017726,144.66,144.51,221.66]
[1740754933696,20.18,144.68,144.51,221.66]
[1740754934494,20.18,144.73,144.51,221.66]
[1740754934695,0.00160457,144.61,144.58,0.05307333]
[1740754934884,20.18,144.73,144.57,20.18]
[1740754935094,20.18,144.75,144.57,20.18]
[1740754935493,221.66,144.91,144.57,20.18]
[1740754935688,28.36777639,144.9,144.65,0.04395212]
[1740754935889,1.19527639,144.89,144.66,241.84]
[1740754936393,6.9112,144.78,144.66,221.66]
[1740754936593,20.18,144.77,144.66,221.66]
[1740754937001,0.04503749,144.73,144.7,0.0520297]
[1740754937698,12.39247768,144.72,144.66,196.71044934]
[1740754937898,0.04503749,144.73,144.66,166.15296223]
[1740754938093,0.04503749,144.73,144.67,20.18]
[1740754938298,15.90267768,144.9,144.67,20.18]
[1740754938491,3.5102,144.9,144.67,20.18]
[1740754938797,6.9069,144.87,144.68,20.16]
[1740754938992,20.16,144.89,144.68,20.16]
[1740754939296,20.16,144.89,144.69,20.16]
[1740754939503,0.04688943,144.8,144.77,0.04491252]
[1740754939995,0.04392778,144.8,144.77,0.04499964]
[1740754941598,0.04392778,144.8,144.77,195.04499964]
[1740754942203,0.04392778,144.8,144.79,6.9105]
[1740754942507,224.63041186,145.03,144.79,195.0]
[1740754942706,31.0386,145.02,144.79,195.0]
[1740754943008,10.8786,145.02,144.79,195.0]
[1740754943307,20.16,145.01,144.76,221.34]
[1740754943703,10.8786,145.02,144.87,0.05163792]
[1740754944005,20.14,145.01,144.76,221.34]
[1740754944306,6.9037,144.94,144.81,6.9095]
[1740754944507,20.14,144.93,144.76,241.48]
[1740754945502,0.05198583,144.86,144.83,0.05185647]
[1740754945799,20.14,144.93,144.81,6.9092]
[1740754946004,0.05045132,144.86,144.83,6.95583766]
[1740754946207,6.9023,144.97,144.76,241.48]
[1740754946406,0.0481178,144.86,144.83,0.04954682]
[1740754946713,1.37931034,145.0,144.83,20.12]
[1740754947006,1.37931034,145.0,144.83,23.63109697]
[1740754947204,1.37931034,145.0,144.9,6.9049]
[1740754947410,20.12,145.01,144.86,221.24]
[1740754947606,3.7168,145.02,144.86,221.24]
[1740754947904,13.7824,145.2,144.86,221.24]
[1740754947905,7.0844,145.09,144.86,221.24]
[1740754948103,6.557e-05,144.95,144.93,0.04959374]
[1740754948408,3.452,145.09,144.92,20.12]
[1740754948711,3.7911,145.08,144.87,20.12]
[1740754949210,3.452,145.09,144.87,20.12]
[1740754949400,0.04560557,144.99,144.96,0.04368766]
[1740754949608,5.57e-06,144.99,144.96,0.04368766]
[1740754949807,20.12,145.1,144.96,3.44]
[1740754950014,20.12,145.1,144.94,20.12]
[1740754950411,20.12,145.1,144.89,20.12]
[1740754950714,0.04514205,145.01,144.98,0.04931185]
[1740754950907,6.8988,145.04,144.89,20.12]
[1740754951105,0.05106829,145.01,144.98,0.04553097]
[1740754951410,20.1,145.02,144.86,324.21710958]
[1740754951711,20.1,145.02,144.86,221.24]
[1740754951903,0.05035097,144.95,144.93,0.0435372]
[1740754952344,20.1,144.95,144.79,241.14]
[1740754953011,20.1,144.95,144.71,241.14]
[1740754953210,1.37988133,144.94,144.71,241.14]
[1740754953500,1.19431377,144.93,144.71,241.14]
[1740754953702,0.04582557,144.84,144.81,0.04666627]
[1740754954104,20.1,144.85,144.64,20.1]
[1740754954297,10.99793688,144.84,144.63,221.04]
[1740754954493,1.19534794,144.83,144.73,0.04611321]
[1740754954695,1.19534794,144.83,144.6,1.06909237]
[1740754954888,0.04775544,144.75,144.55,221.08]
[1740754955086,20.1,144.74,144.55,221.08]
[1740754955288,3.5193,144.73,144.58,6.9205]
[1740754955593,3.5193,144.73,144.55,221.08]
[1740754955789,3.5193,144.73,144.64,0.05118969]
[1740754955981,2.022e-05,144.67,144.64,0.05118969]
[1740754956179,3.5193,144.81,144.65,223.45473729]
[1740754956374,7.3401,144.84,144.66,20.1]
[1740754956578,20.1,144.9,144.66,20.1]
[1740754957074,20.1,144.9,144.71,6.9139]
[1740754957281,20.1,144.9,144.72,2.37225214]
[1740754957477,0.04476996,144.79,144.77,0.04639052]
[1740754957677,20.1,144.81,144.77,0.04639052]
[1740754957982,20.1,144.81,144.78,0.05026987]
[1740754957983,0.04660806,144.79,144.78,0.05026987]
[1740754958388,0.04660806,144.79,144.68,2.36052988]
[1740754958581,0.04660806,144.79,144.77,0.05307077]
[1740754958776,20.1,144.81,144.7,2.36304706]
[1740754958982,0.04375481,144.79,144.72,0.0437008]
[1740754959176,0.04375481,144.79,144.67,37.65417637]
[1740754959177,0.04375481,144.79,144.7,10.22116144]
[1740754959379,20.1,144.78,144.74,0.04455589]
[1740754959581,20.1,144.78,144.7,10.22116144]
[1740754959778,3.6513,144.88,144.75,0.04918536]
[1740754959974,3.6513,144.88,144.71,2.35585511]
[1740754960176,0.05184794,144.83,144.8,0.05100864]
[1740754960384,20.1,144.82,144.65,223.45473729]
[1740754960785,27.0095,144.82,144.65,223.45473729]
[1740754960984,20.1,144.82,144.65,223.45473729]
[1740754961380,8.29072008,144.81,144.65,223.45473729]
[1740754961585,0.04703379,144.75,144.72,0.04666794]
[1740754961780,20.1,144.74,144.65,2.37473729]
[1740754961981,10.3491,144.73,144.65,2.37473729]
[1740754962285,3.4357,144.73,144.65,2.37473729]
[1740754962884,3.4357,144.73,144.68,0.0456332]
[1740754963081,0.04427352,144.7,144.68,0.0456332]
[1740754963480,3.4441,144.79,144.69,6.9153]
[1740754963688,3.4441,144.79,144.68,3.5056332]
[1740754963689,3.4441,144.79,144.65,2.37473729]
[1740754963981,3.4441,144.79,144.66,2.35888416]
[1740754964185,3.4441,144.79,144.67,2.35888416]
[1740754964481,3.4441,144.79,144.68,2.35402885]
[1740754964686,3.4441,144.79,144.65,2.37473729]
[1740754964880,23.5157,144.8,144.65,2.37473729]
[1740754964881,0.04606949,144.74,144.72,0.04953747]
[1740754965076,3.7107,144.82,144.73,6.9132]
[1740754965281,221.22,144.87,144.67,221.22]
[1740754965582,20.1,144.85,144.68,2.34846607]
[1740754965885,20.1,144.85,144.75,6.912]
[1740754966082,20.1,144.85,144.7,22.44846607]
[1740754966284,0.0526389,144.81,144.79,0.04600436]
[1740754966487,0.0526389,144.81,144.68,2.34846607]
[1740754966786,20.08,144.85,144.79,0.05039716]
[1740754966982,0.05048575,144.76,144.7,2.34846607]
[1740754967185,20.08,144.85,144.71,2.34846607]
[1740754967383,20.08,144.85,144.72,2.34846607]
[1740754967585,20.08,144.85,144.68,2.33637084]
[1740754967784,20.08,144.85,144.69,2.33637084]
[1740754967984,20.08,144.85,144.78,6.9108]
[1740754968181,3.4435,144.88,144.78,6.9108]
[1740754968378,0.05253316,144.83,144.8,0.04819097]
[1740754970491,20.08,144.82,144.72,195.0]
[1740754970692,23.5507,144.82,144.67,221.22]
[1740754971590,0.04409695,144.76,144.73,0.05090911]
[1740754971793,23.5507,144.82,144.62,223.49912521]
[1740754971988,0.05019924,144.76,144.73,0.0528042]
[1740754972290,23.5507,144.82,144.65,197.37473729]
[1740754972491,0.04720825,144.76,144.73,0.05292988]
[1740754972691,23.5507,144.82,144.65,2.37473729]
[1740754972892,0.04717629,144.76,144.73,0.05190145]
[1740754973082,23.5507,144.82,144.65,2.37473729]
[1740754973287,20.08,144.81,144.73,0.04984199]